bitfinex/quotes_ETHUSD_20250623
["timestamp","ask_amount","ask_price","bid_price","bid_amount"]
[1750664684858,10.7518,2261.4,2260.9,0.0137]
[1750664685037,10.7398,2261.4,2260.9,0.0137]
[1750664685242,10.7549,2261.4,2260.9,0.0137]
[1750664685838,10.0,2261.2,2260.6,0.842]
[1750664686039,17.1821,2261.2,2260.6,5.26546604]
[1750664687138,17.1821,2261.2,2260.6,0.842]
[1750664687350,17.1821,2261.2,2260.6,5.26559347]
[1750664687550,19.15861842,2261.2,2260.6,5.26559347]
[1750664687838,10.0,2260.9,2260.4,0.8144]
[1750664688167,17.9969,2260.9,2260.4,0.8144]
[1750664688789,17.9969,2260.9,2260.4,5.23839406]
[1750664688933,17.9818,2260.9,2260.4,6.20464794]
[1750664689132,17.9818,2260.9,2260.4,1.78065388]
[1750664689368,17.9818,2260.9,2260.4,0.8144]
[1750664689674,17.9969,2260.9,2260.4,5.23836784]
[1750664689887,17.9818,2260.9,2260.4,5.23836784]
[1750664690164,17.9818,2260.9,2260.4,0.8144]
[1750664690351,17.9969,2260.9,2260.4,0.8144]
[1750664690552,17.9969,2260.9,2260.3,4.42407552]
[1750664690768,17.9969,2260.9,2260.3,5.3861534]
[1750664691158,17.9969,2260.9,2260.4,4.42397785]
[1750664693269,17.9969,2260.9,2260.4,4.47107785]
[1750664693675,17.9969,2260.9,2260.4,0.0471]
[1750664694763,17.9969,2260.9,2260.2,4.47131914]
[1750664694977,17.9969,2260.9,2260.3,4.42415372]
[1750664696691,17.9969,2260.9,2260.3,4.47125372]
[1750664698982,17.9818,2260.9,2260.3,4.47125372]
[1750664699186,17.9969,2260.9,2260.3,4.42415372]
[1750664700651,17.9969,2260.9,2260.3,4.42419147]
[1750664700853,17.9969,2260.9,2260.3,5.04051104]
[1750664701154,10.8148,2260.9,2260.4,4.42398631]
[1750664701355,10.0,2260.7,2260.5,4.423701]
[1750664701864,10.8259,2261.1,2260.5,4.42368435]
[1750664702064,7.168,2261.2,2260.6,0.04423441]
[1750664702393,10.0,2261.1,2260.6,0.85973463]
[1750664702597,10.0,2261.1,2260.8,0.0584]
[1750664702796,10.7689,2260.9,2260.3,5.8696895]
[1750664702998,17.9369,2260.9,2260.5,0.0584]
[1750664703504,19.838,2260.9,2260.4,4.48221832]
[1750664704396,19.838,2260.9,2260.4,5.51743534]
[1750664705396,19.838,2260.9,2260.4,1.03521702]
[1750664705598,19.838,2260.9,2260.3,5.92819924]
[1750664707060,19.838,2260.9,2260.4,4.42398435]
[1750664707265,19.838,2260.9,2260.4,4.48238435]
[1750664707696,19.838,2260.9,2260.4,0.0584]
[1750664708082,19.838,2260.9,2260.4,4.48238853]
[1750664708986,19.838,2260.9,2260.4,0.0584]
[1750664711101,19.8229,2260.9,2260.3,5.86969974]
[1750664712273,22.58212119,2260.9,2260.3,0.8293]
[1750664712478,10.0,2260.7,2260.1,0.0575]
[1750664712685,7.168,2260.6,2260.2,4.42437736]
[1750664712878,7.168,2260.6,2260.3,0.0575]
[1750664717707,7.168,2260.6,2260.2,4.42437736]
[1750664718013,7.168,2260.6,2260.2,5.38771989]
[1750664719908,7.168,2260.6,2260.3,4.42418437]
[1750664720120,7.168,2260.6,2260.3,4.42419147]
[1750664720629,1.83118508,2260.9,2260.3,0.8143]
[1750664720792,8.22919841,2261.1,2260.6,0.8143]
[1750664722124,8.22882503,2261.1,2260.6,0.8143]
[1750664722335,10.8095,2260.9,2260.4,0.7613]
[1750664722499,10.8095,2260.9,2260.5,0.0575]
[1750664725524,7.75421185,2260.8,2260.2,1.78214253]
[1750664725754,14.92121185,2260.8,2260.3,0.0575]
[1750664725887,14.92121185,2260.8,2260.3,1.06309407]
[1750664726086,14.92121185,2260.8,2260.4,0.0575]
[1750664727286,7.167,2260.8,2260.4,0.0575]
[1750664727598,7.167,2260.8,2260.4,4.42389724]
[1750664730231,7.167,2260.8,2260.3,5.48715556]
[1750664730525,7.167,2260.8,2260.4,1.06727719]
[1750664730985,7.167,2260.8,2260.3,4.42406149]
[1750664731187,7.167,2260.8,2260.4,4.42397771]
[1750664731689,7.167,2260.8,2260.5,0.7573]
[1750664732086,10.8095,2260.9,2260.5,0.7573]
[1750664732283,7.166,2260.8,2260.5,0.7573]
[1750664732627,7.166,2260.8,2260.5,1.27542777]
[1750664733038,10.8095,2260.9,2260.5,1.27542777]
[1750664733331,7.166,2260.8,2260.5,1.27542777]
[1750664734030,10.8095,2260.9,2260.5,1.27542777]
[1750664734212,19.05,2260.9,2260.5,1.27542777]
[1750664734537,10.0,2260.8,2260.6,0.56994055]
[1750664736022,10.0,2260.8,2260.2,4.4243432]
[1750664736023,10.0,2260.8,2260.3,0.7544]
[1750664736221,10.7888,2260.8,2260.3,0.7544]
[1750664736426,10.7888,2260.8,2260.3,5.1785849]
[1750664736627,10.7888,2260.8,2260.4,4.42397992]
[1750664737321,10.7888,2260.8,2260.3,5.17848111]
[1750664737519,10.7888,2260.8,2260.3,6.13875959]
[1750664739350,10.7888,2260.8,2260.3,1.71467848]
[1750664739510,10.7888,2260.8,2260.3,6.13885767]
[1750664741753,10.7888,2260.8,2260.3,1.71467848]
[1750664742056,10.7888,2260.8,2260.3,6.13875212]
[1750664742421,10.7888,2260.8,2260.4,0.0564]
[1750664744180,7.75421185,2260.6,2260.0,0.0564]
[1750664744461,17.9655,2260.5,2260.0,0.0564]
[1750664745726,2.6412,2260.4,2259.8,0.0564]
[1750664745938,2.6563,2260.4,2259.8,0.0564]
[1750664746139,2.6563,2260.4,2259.8,4.4815672]
[1750664746459,2.6563,2260.4,2259.8,5.4546114]
[1750664746753,10.0,2260.3,2259.8,5.4546114]
[1750664746958,10.0,2260.3,2259.9,0.0564]
[1750664751380,10.0,2260.3,2259.9,4.48137263]
[1750664751568,10.0,2260.3,2259.9,4.42497455]
[1750664751767,10.0,2260.3,2260.0,0.47387547]
[1750664751969,17.165,2260.3,2260.0,4.89865262]
[1750664752328,17.165,2260.3,2260.0,0.47387547]
[1750664753364,17.165,2260.3,2259.9,4.42487964]
[1750664753528,17.165,2260.3,2260.0,5.23597633]
[1750664753960,10.8142,2260.6,2260.1,4.42455328]
[1750664754169,7.165,2260.6,2260.2,4.42437663]
[1750664754866,10.8142,2260.8,2260.2,4.42437663]
[1750664755067,9.049,2260.7,2260.2,5.19267663]
[1750664755961,9.049,2260.7,2260.0,5.25004362]
[1750664756171,10.0,2260.6,2260.0,5.25004362]
[1750664757562,10.0,2260.6,2260.0,5.25005841]
[1750664757770,10.0,2260.6,2260.0,0.8254]
[1750664757956,10.0,2260.6,2260.1,0.52503728]
[1750664758474,10.0,2260.6,2260.1,4.94961655]
[1750664759972,10.0,2260.6,2260.1,0.52503728]
[1750664760372,19.049,2260.6,2260.1,0.52503728]
[1750664760669,10.0,2260.6,2260.1,0.52503728]
[1750664760869,19.049,2260.6,2260.1,0.52503728]
[1750664762362,19.049,2260.6,2260.1,4.94961863]
[1750664763474,19.049,2260.6,2260.1,0.52503728]
[1750664764354,19.049,2260.6,2260.0,0.8254]
[1750664765765,10.0,2260.4,2260.0,0.8254]
[1750664768798,7.75421185,2260.1,2259.4,1.33015]
[1750664768943,17.164,2260.0,2259.5,0.7938]
[1750664769147,17.164,2260.0,2259.5,1.31577361]
[1750664769788,17.164,2260.0,2259.5,0.7938]
[1750664770050,7.75421185,2259.6,2259.3,0.7866]
[1750664770257,16.81431185,2259.6,2259.1,0.7534]
[1750664770480,7.75421185,2259.4,2259.1,0.7534]
[1750664770687,7.75421185,2259.4,2258.7,0.7534]
[1750664770688,7.164,2259.3,2258.7,0.7534]
[1750664770870,7.164,2259.3,2258.7,1.59264466]
[1750664771892,7.75421185,2259.0,2258.7,0.7534]
[1750664772093,7.75421185,2259.0,2258.1,12.512]
[1750664772094,14.91821185,2259.0,2258.5,0.8025]
[1750664772257,14.93331185,2259.0,2258.5,0.8025]
[1750664772457,7.164,2259.0,2258.5,0.8025]
[1750664772656,7.164,2259.0,2258.5,5.23006654]
[1750664772891,7.164,2259.0,2258.6,0.96579709]
[1750664773374,7.164,2259.0,2258.6,5.39331769]
[1750664775200,0.8189,2259.1,2258.6,0.96579709]
[1750664775494,9.046,2259.1,2258.6,4.42739525]
[1750664775796,9.0611,2259.1,2258.5,5.23012279]
[1750664776461,9.0611,2259.1,2258.5,0.8025]
[1750664776665,10.86340906,2259.1,2258.5,0.8025]
[1750664776910,10.86340906,2259.1,2258.5,5.23020793]
[1750664778289,10.0,2259.0,2258.6,4.42751447]
[1750664780626,10.0,2259.0,2258.5,0.8025]
[1750664780768,7.75421185,2258.8,2258.1,0.7808]
[1750664780973,7.166,2258.7,2258.2,4.42817635]
[1750664781270,0.7614,2258.5,2258.0,4.42865939]
[1750664781487,0.7614,2258.5,2258.0,5.52560836]
[1750664782070,0.7614,2258.5,2258.0,1.09694897]
[1750664782287,0.7765,2258.5,2258.2,4.42829774]
[1750664782491,0.7614,2258.5,2258.2,4.42829774]
[1750664782830,0.7614,2258.5,2258.3,4.42810178]
[1750664783030,10.0,2258.7,2258.3,1.67655901]
[1750664783305,10.0,2258.7,2258.5,4.42762467]
[1750664783512,10.0,2258.7,2258.4,4.42780695]
[1750664784307,10.0,2258.7,2258.5,4.42769258]
[1750664785104,10.0,2258.7,2258.6,4.42752147]
[1750664785519,10.0,2258.7,2258.5,4.42761167]
[1750664786720,10.0,2258.7,2258.6,4.42752147]
[1750664787311,10.7688,2259.0,2258.5,4.42760714]
[1750664787502,10.0,2258.8,2258.5,4.42760714]
[1750664787871,10.0,2258.8,2258.4,4.42783703]
[1750664788999,10.0,2258.8,2258.3,6.10456481]
[1750664790314,10.0,2258.8,2258.4,4.42791245]
[1750664791101,10.0,2258.8,2258.3,5.21891491]
[1750664791796,1.882,2258.8,2258.5,4.42759594]
[1750664792003,11.882,2258.8,2258.5,4.42759594]
[1750664793024,10.0,2259.0,2258.6,4.42739006]
[1750664793602,10.0,2259.0,2258.5,0.7572]
[1750664794428,17.75421185,2259.0,2258.5,0.7572]
[1750664795014,17.75421185,2259.0,2258.5,5.18490798]
[1750664795220,0.8326,2259.8,2259.0,4.42673069]
[1750664795525,11.879,2259.6,2259.1,4.42653516]
[1750664796387,19.046,2259.6,2259.1,4.42653516]
[1750664796594,0.7948,2259.4,2258.9,4.42682427]
[1750664796794,10.0,2259.2,2258.7,4.42722802]
[1750664797532,0.7987,2259.1,2258.7,4.42722802]
[1750664798789,0.7987,2259.1,2258.8,4.42709171]
[1750664798995,0.7987,2259.1,2258.7,4.42721473]
[1750664800921,0.7987,2259.1,2258.7,4.42723286]
[1750664801930,0.7987,2259.1,2258.8,4.42711473]
[1750664802136,8.50611185,2259.3,2258.9,4.42692167]
[1750664802295,2.5968223,2259.3,2258.9,4.42692167]
[1750664802929,2.5968223,2259.3,2258.8,4.42704005]
[1750664803831,0.7519,2259.3,2259.0,4.42659458]
[1750664805012,0.7519,2259.3,2258.9,1.330693]
[1750664805196,0.7519,2259.3,2258.8,4.42702876]
[1750664805391,0.7519,2259.3,2258.7,4.42721487]
[1750664805594,10.0,2259.1,2258.8,1.330746]
[1750664805840,10.0,2259.1,2258.6,5.2046244]
[1750664807920,10.0,2259.1,2258.7,4.42730942]
[1750664808141,10.0,2259.1,2258.6,5.20460809]
[1750664808351,0.7935,2259.0,2258.5,3.18911631]
[1750664808553,0.7935,2259.0,2258.5,7.61674108]
[1750664809057,10.0,2258.9,2258.5,1.330946]
[1750664809356,10.0,2258.9,2258.3,4.42802902]
[1750664809561,10.0,2258.9,2258.3,5.75909402]
[1750664810134,10.0,2258.9,2258.4,4.42791271]
[1750664810370,10.0,2258.9,2258.5,4.42771608]
[1750664810519,10.0,2258.9,2258.6,4.42749789]
[1750664810870,11.879,2258.9,2258.6,4.42749789]
[1750664811225,10.0,2258.9,2258.6,4.42749789]
[1750664812551,10.0,2258.9,2258.5,4.42761831]
[1750664812858,10.0,2258.9,2258.5,5.55591372]
[1750664814663,10.0,2258.9,2258.5,6.88686672]
[1750664814957,10.0,2258.9,2258.5,2.45924841]
[1750664815160,0.757,2258.8,2258.3,4.42805781]
[1750664815333,0.757,2258.8,2258.3,5.80339744]
[1750664815528,0.757,2258.8,2258.4,4.42791356]
[1750664816264,0.757,2258.8,2258.3,4.42800616]
[1750664817033,0.757,2258.8,2258.2,5.75935521]
[1750664817229,0.757,2258.8,2258.2,7.38646797]
[1750664817435,0.757,2258.8,2258.3,4.42810463]
[1750664818065,10.0,2258.9,2258.6,4.4275155]
[1750664818574,0.7924,2259.0,2258.7,4.42723776]
[1750664819134,0.7924,2259.0,2258.6,5.75828746]
[1750664819353,0.7924,2259.0,2258.7,4.42731729]
[1750664819764,0.7924,2259.0,2258.6,6.85858201]
[1750664821031,0.7924,2259.0,2258.7,4.42730651]
[1750664821850,0.7924,2259.0,2258.7,4.42731234]
[1750664822054,0.7924,2259.0,2258.6,6.85859085]
[1750664822554,0.7924,2259.0,2258.7,4.42727509]
[1750664822760,0.7762,2259.2,2258.7,1.12858659]
[1750664822959,1.88,2259.3,2258.7,0.7992]
[1750664823160,1.83771943,2259.5,2258.7,0.7992]
[1750664823475,1.83771943,2259.5,2259.1,4.42645241]
[1750664823476,2.6562,2259.5,2259.1,4.42645241]
[1750664823632,2.6562,2259.5,2259.0,0.7931]
[1750664823633,2.6562,2259.5,2259.0,4.42673247]
[1750664824034,10.0,2259.4,2259.0,4.42673247]
[1750664824236,10.0,2259.4,2259.0,6.10802276]
[1750664825035,10.0,2259.4,2259.0,1.68129029]
[1750664825239,10.0,2259.4,2259.0,6.10801336]
[1750664825676,10.0,2259.4,2259.0,1.68129029]
[1750664825851,10.0,2259.4,2258.9,4.42684754]
[1750664826040,17.75421185,2259.4,2258.8,5.22013549]
[1750664826514,0.7633,2259.3,2258.8,4.42703549]
[1750664826953,0.7633,2259.3,2258.7,4.42723501]
[1750664827138,2.80305119,2259.3,2258.9,1.330698]
[1750664827339,0.8187,2259.0,2258.5,4.42766931]
[1750664827566,0.8187,2259.0,2258.6,1.330852]
[1750664827971,0.8187,2259.0,2258.5,4.42770749]
[1750664828268,18.57291185,2258.8,2258.5,1.330893]
[1750664828578,18.57291185,2258.8,2258.3,4.42810048]
[1750664828890,18.57291185,2258.8,2258.3,5.75917148]
[1750664829106,11.878,2258.8,2258.4,5.26083209]
[1750664829253,11.878,2258.8,2258.4,4.42781404]
[1750664829690,11.878,2258.8,2258.3,5.75909922]
[1750664829960,0.7799,2258.7,2258.3,5.75909922]
[1750664830984,0.7799,2258.7,2258.3,1.331071]
[1750664831394,0.7799,2258.7,2258.4,4.42786037]
[1750664832381,0.7799,2258.7,2258.3,7.65707522]
[1750664834897,0.7799,2258.7,2258.4,4.42789656]
[1750664835200,0.7799,2258.7,2258.3,7.65708169]
[1750664836000,0.7799,2258.7,2258.4,4.42788623]
[1750664836229,0.7799,2258.7,2258.4,4.42778385]
[1750664837374,0.7799,2258.7,2258.5,4.4275984]
[1750664837570,10.0,2258.8,2258.4,5.18468385]
[1750664837882,10.0,2258.8,2258.5,4.42757181]
[1750664838302,10.0,2258.8,2258.6,4.42743481]
[1750664838604,10.831,2259.1,2258.7,4.42730882]
[1750664839139,10.831,2259.1,2258.6,5.75826803]
[1750664839690,19.875,2259.1,2258.6,5.75826803]
[1750664840319,19.875,2259.1,2258.8,4.42703674]
[1750664840488,10.831,2259.1,2258.8,4.42703674]
[1750664840688,10.831,2259.1,2258.6,2.50927343]
[1750664841009,10.831,2259.1,2258.7,4.42730224]
[1750664841211,10.831,2259.1,2258.8,4.42712382]
[1750664841409,10.831,2259.1,2258.7,4.42724109]
[1750664841923,10.831,2259.1,2258.6,6.9366902]
[1750664842134,10.831,2259.1,2258.6,1.330852]
[1750664844112,7.75421185,2259.0,2258.6,1.330852]
[1750664844315,0.7505,2258.8,2258.3,4.42800859]
[1750664844521,0.7505,2258.8,2258.5,1.331023]
[1750664844949,10.0,2258.7,2258.2,4.42823857]
[1750664845385,0.775,2258.6,2258.4,1.331088]
[1750664845523,0.775,2258.6,2258.1,4.42841132]
[1750664845710,0.775,2258.6,2258.1,5.75955332]
[1750664845910,0.775,2258.6,2258.2,4.42828662]
[1750664846115,10.0,2258.7,2258.2,4.42828662]
[1750664846427,10.0,2258.7,2258.2,4.42819817]
[1750664847937,10.0,2258.7,2258.3,4.42800012]
[1750664848119,10.0,2258.7,2258.2,4.428221]
[1750664848316,10.0,2258.7,2258.4,4.42790661]
[1750664849162,10.0,2258.7,2258.4,0.04427787]
[1750664849367,10.0,2258.7,2258.5,4.42761089]
[1750664849543,10.0,2258.7,2258.4,4.42781137]
[1750664849738,0.7529,2258.8,2258.4,4.42781137]
[1750664850464,0.7529,2258.8,2258.5,4.42770431]
[1750664850939,0.7529,2258.8,2258.4,1.331035]
[1750664850940,0.7529,2258.8,2258.4,5.7588665]
[1750664852476,0.7529,2258.8,2258.4,1.331035]
[1750664852977,0.7529,2258.8,2258.4,5.75894421]
[1750664853370,0.7529,2258.8,2258.4,1.331035]
[1750664853937,0.7529,2258.8,2258.4,5.75893236]
[1750664854186,10.7529,2258.8,2258.5,4.42770381]
[1750664854390,10.0,2258.8,2258.5,4.42770381]
[1750664854537,0.8242,2259.0,2258.6,4.427407]
[1750664855380,0.8242,2259.0,2258.5,4.42760596]
[1750664857687,1.88690187,2259.0,2258.5,4.42760596]
[1750664857928,1.88690187,2259.0,2258.5,5.49178899]
[1750664859598,0.8242,2259.0,2258.6,4.42751716]
[1750664860296,12.94065182,2259.1,2258.7,5.20205929]
[1750664860596,11.878,2259.1,2258.7,5.20205929]
[1750664861587,11.878,2259.1,2258.7,0.7749]
[1750664862490,11.878,2259.1,2258.7,5.2022114]
[1750664862894,11.878,2259.1,2258.7,0.7749]
[1750664864305,11.878,2259.1,2258.7,5.20221853]
[1750664864810,0.7816,2259.0,2258.6,4.42742414]
[1750664864954,19.8246,2259.1,2258.7,0.54914967]
[1750664865158,19.8246,2259.1,2258.6,4.42742414]
[1750664865996,19.8246,2259.1,2258.7,4.42731981]
[1750664866198,19.8246,2259.1,2258.6,4.42740683]
[1750664867497,10.0,2259.1,2258.8,0.7587]
[1750664867695,7.75421185,2259.2,2258.6,4.42739296]
[1750664867858,0.0151,2259.3,2258.8,4.4269657]
[1750664867859,0.7816,2259.1,2258.8,4.4269657]
[1750664868064,1.84398295,2259.3,2258.8,0.04426754]
[1750664868267,9.8246,2259.3,2258.9,4.42676139]
[1750664868803,9.8246,2259.5,2259.2,4.42633956]
[1750664869101,10.7816,2259.5,2259.2,5.31164727]
[1750664869810,10.7816,2259.5,2258.9,0.7587]
[1750664870018,10.7816,2259.5,2258.9,5.18553]
[1750664870783,10.7816,2259.5,2259.0,4.42672938]
[1750664871804,17.9456,2259.5,2259.0,4.42672938]
[1750664872597,17.9456,2259.5,2259.0,4.42664435]
[1750664872796,17.9456,2259.5,2259.0,5.38786492]
[1750664874501,17.9456,2259.5,2259.1,4.42647407]
[1750664874890,10.7816,2259.5,2259.2,4.42624837]
[1750664875098,10.7816,2259.5,2259.2,0.04426111]
[1750664875273,10.7816,2259.5,2259.3,4.42614717]
[1750664875476,0.8094,2259.7,2259.2,0.54319558]
[1750664875790,10.0,2259.6,2259.1,4.42644759]
[1750664876294,10.0,2259.6,2259.3,4.42604172]
[1750664878006,0.8094,2260.0,2259.4,0.04425602]
[1750664878179,10.0,2260.1,2259.8,4.42505679]
[1750664878581,10.0,2260.1,2259.5,0.757]
[1750664878782,10.0,2260.1,2259.6,4.42541274]
[1750664878983,10.0,2260.1,2259.7,4.4253303]
[1750664880830,0.8094,2260.2,2259.8,4.42515025]
[1750664881030,0.8094,2260.2,2260.0,4.42467187]
[1750664881234,0.8094,2260.2,2259.9,4.42479089]
[1750664881512,0.8094,2260.2,2260.0,4.42467078]
[1750664881693,0.8094,2260.2,2259.9,4.42490982]
[1750664881893,0.8094,2260.2,2259.9,5.40599035]
[1750664882482,0.8094,2260.2,2260.0,4.42477288]
[1750664883819,0.8094,2260.2,2259.9,5.40594581]
[1750664884327,0.8094,2260.2,2260.0,4.42477566]
[1750664885819,0.8094,2260.2,2259.9,0.98108053]
[1750664885820,0.8094,2260.2,2259.9,5.40598215]
[1750664885988,11.877,2260.3,2260.1,4.42458298]
[1750664886189,10.0,2260.3,2260.2,4.42438722]
[1750664886412,10.0,2260.4,2260.2,4.42438722]
[1750664886820,10.0,2260.4,2260.1,4.42448394]
[1750664888802,10.0,2260.4,2260.2,4.42435886]
[1750664889396,10.0,2260.4,2260.1,4.42447336]
[1750664889690,10.0,2260.4,2260.0,0.54059821]
[1750664889896,7.75421185,2260.2,2259.5,5.25477379]
[1750664890086,7.75421185,2260.0,2259.4,5.75605201]
[1750664890293,0.8246,2259.9,2259.5,4.42574391]
[1750664890518,0.8246,2259.9,2259.5,5.39383148]
[1750664891422,0.8246,2259.9,2259.5,0.96808757]
[1750664891606,10.8246,2259.9,2259.5,4.42565282]
[1750664892624,10.8246,2259.9,2259.6,4.42554691]
[1750664892830,10.8246,2259.9,2259.4,0.04425282]
[1750664892831,0.8246,2259.9,2259.4,0.04425282]
[1750664893036,10.7896,2260.1,2259.8,4.42508397]
[1750664893192,0.7896,2260.1,2259.6,0.86294963]
[1750664893397,0.7896,2260.1,2259.8,4.42506993]
[1750664893928,0.7896,2260.1,2259.9,4.42492732]
[1750664894255,1.876,2260.3,2260.0,4.42468015]
[1750664894610,1.876,2260.3,2260.0,4.42477068]
[1750664895548,1.876,2260.3,2259.9,4.42488231]
[1750664895703,0.7896,2260.4,2260.0,4.42477827]
[1750664895902,9.8266,2260.4,2260.0,4.42477827]
[1750664896451,0.7896,2260.4,2260.0,1.78217912]
[1750664896761,0.815,2260.6,2260.1,4.42449757]
[1750664897104,0.8301,2260.6,2260.1,4.42449757]
[1750664897301,8.58431185,2260.6,2260.0,4.42470501]
[1750664897502,0.8277,2260.4,2260.0,4.42470501]
[1750664897732,0.8277,2260.4,2260.1,4.42453858]
[1750664897941,0.8277,2260.4,2260.2,4.42436686]
[1750664898155,2.29657905,2262.1,2260.3,4.42410743]
[1750664898156,0.8277,2260.6,2260.3,4.42410743]
[1750664898370,12.6651,2260.8,2260.2,5.21757399]
[1750664898519,12.6651,2260.8,2260.4,4.42399556]
[1750664898723,2.6651,2260.8,2260.4,4.42390553]
[1750664899056,10.0,2260.7,2260.4,4.42390553]
[1750664899831,2.6651,2260.8,2260.5,4.42373299]
[1750664900021,0.7891,2260.8,2260.5,4.42373299]
[1750664900840,0.7891,2260.8,2260.6,4.42360424]
[1750664901160,12.6563,2261.0,2260.7,4.42332132]
[1750664901320,12.6563,2261.0,2260.8,4.42320361]
[1750664901522,0.8253,2261.3,2260.6,12.22189388]
[1750664901724,0.8253,2261.3,2260.9,4.42289894]
[1750664901959,0.8253,2261.3,2260.8,4.42306666]
[1750664902118,0.8253,2261.3,2261.0,4.42281208]
[1750664902319,10.8253,2261.3,2261.0,4.42281208]
[1750664902561,2.6442,2261.5,2261.1,4.42251629]
[1750664902761,0.7682,2261.5,2261.1,4.42255842]
[1750664902970,0.7682,2261.5,2261.2,4.42240604]
[1750664903125,0.7682,2261.5,2261.3,0.0148]
[1750664904059,0.7682,2261.5,2261.0,4.42272057]
[1750664904280,0.8036,2261.3,2261.0,0.0148]
[1750664904430,0.8036,2261.3,2260.9,4.42291672]
[1750664904630,0.8036,2261.3,2261.0,0.0148]
[1750664904925,2.03984119,2261.5,2261.1,5.19439335]
[1750664905130,2.6697,2261.6,2261.0,4.43751972]
[1750664906068,2.6697,2261.6,2261.2,0.0148]
[1750664907771,2.6697,2261.6,2260.8,4.42305414]
[1750664907772,0.7601,2261.3,2260.8,4.42305414]
[1750664907949,0.7601,2261.3,2260.9,4.4230034]
[1750664908567,0.7601,2261.3,2261.0,4.42279733]
[1750664909078,0.7601,2261.3,2261.0,4.42273342]
[1750664910077,0.7601,2261.3,2261.1,4.42261241]
[1750664910238,7.75421185,2261.5,2261.2,4.42243056]
[1750664910239,0.8094,2261.5,2261.2,4.42243056]
[1750664910656,0.8094,2261.5,2261.4,4.42203944]
[1750664910839,0.8094,2261.5,2261.0,5.19699131]
[1750664910840,2.633,2261.7,2261.0,0.7742]
[1750664911174,2.633,2261.7,2261.2,4.42241534]
[1750664911569,2.633,2261.7,2261.3,4.42219808]
[1750664912455,2.633,2261.7,2261.4,4.42200861]
[1750664912654,2.633,2261.7,2261.5,0.0148]
[1750664912979,2.633,2261.7,2261.5,4.43662524]
[1750664913481,2.633,2261.7,2261.5,0.0148]
[1750664913699,2.633,2261.7,2261.5,4.4366384]
[1750664913875,0.758,2261.7,2261.6,4.42164839]
[1750664914079,9.8407,2261.9,2261.6,4.43644839]
[1750664914392,2.6817,2261.9,2261.6,4.43644839]
[1750664914594,2.6817,2261.9,2261.6,0.0148]
[1750664916495,0.8194,2262.1,2261.7,4.4361269]
[1750664916814,0.8194,2262.1,2261.4,0.0148]
[1750664916815,7.75421185,2262.0,2261.4,0.0148]
[1750664917096,7.75421185,2262.0,2261.5,4.42178195]
[1750664917299,7.75421185,2262.0,2261.6,0.0148]
[1750664917478,8.57361185,2262.1,2261.6,0.0148]
[1750664917792,10.61998304,2262.1,2261.6,0.0148]
[1750664918362,10.61998304,2262.1,2261.6,4.43637268]
[1750664918561,10.61998304,2262.1,2261.6,4.42157268]
[1750664918792,8.57361185,2262.1,2261.6,4.42157268]
[1750664919010,10.0,2262.0,2261.6,4.42155763]
[1750664920042,10.8194,2262.1,2261.5,5.6965778]
[1750664920294,18.57361185,2262.1,2261.6,4.42154608]
[1750664920636,18.57361185,2262.1,2261.5,5.69655493]
[1750664920760,18.57361185,2262.1,2261.7,4.42142624]
[1750664920951,18.57361185,2262.1,2261.6,4.42154057]
[1750664921149,18.57361185,2262.1,2261.7,4.42142046]
[1750664921572,18.57361185,2262.1,2261.6,4.42154645]
[1750664921758,10.8194,2262.1,2261.6,4.42154645]
[1750664921943,10.8194,2262.1,2261.6,5.43336287]
[1750664922986,10.8194,2262.1,2261.6,1.01181642]
[1750664923195,10.8194,2262.1,2261.5,5.69659793]
[1750664923986,10.8194,2262.1,2261.6,4.42162348]
[1750664924155,10.8194,2262.1,2261.7,4.4213809]
[1750664924876,10.8194,2262.1,2261.7,5.7505169]
[1750664926607,10.8194,2262.1,2261.8,4.42124848]
[1750664926809,10.8194,2262.1,2261.7,5.75053005]
[1750664927188,10.0,2262.1,2261.9,4.42104506]
[1750664928422,14.91021185,2262.5,2261.8,5.75030759]
[1750664928423,19.8177,2262.5,2262.0,4.42086648]
[1750664928631,0.7867,2262.5,2262.1,5.19813673]
[1750664928922,10.0,2262.3,2261.9,4.42097141]
[1750664929214,10.0,2262.3,2261.8,5.75023021]
[1750664929215,0.7889,2262.2,2261.8,5.75023021]
[1750664929380,0.7889,2262.2,2261.8,2.33130735]
[1750664929577,8.54311185,2262.2,2261.7,1.0172124]
[1750664929810,8.54311185,2262.2,2261.7,6.76765605]
[1750664930715,8.54311185,2262.2,2261.8,4.42123041]
[1750664931943,8.54311185,2262.2,2261.8,4.42124673]
[1750664932094,0.7889,2262.2,2261.9,4.42091162]
[1750664933049,0.7889,2262.2,2261.8,5.62260555]
[1750664933323,0.7889,2262.2,2261.8,1.20142826]
[1750664933528,0.7889,2262.2,2261.7,5.75048015]
[1750664934341,0.7889,2262.2,2261.8,4.42124328]
[1750664934627,0.7889,2262.2,2261.8,4.4212574]
[1750664935428,0.7889,2262.2,2261.9,4.42103163]
[1750664936022,0.7889,2262.2,2261.8,4.42115485]
[1750664936717,0.7889,2262.2,2261.7,5.75057116]
[1750664937026,17.75421185,2262.1,2261.7,1.329124]
[1750664937327,0.7609,2261.8,2261.4,4.4219118]
[1750664937530,0.7609,2261.8,2261.4,5.7660068]
[1750664937693,7.75421185,2261.7,2261.4,1.329295]
[1750664937893,10.0,2261.4,2261.0,0.0148]
[1750664938107,7.75421185,2261.1,2261.0,1.329295]
[1750664938324,17.75421185,2261.1,2260.6,0.0148]
[1750664938512,10.0,2260.8,2260.4,4.42398818]
[1750664938717,0.8133,2260.7,2260.6,1.329784]
[1750664939128,0.8133,2260.7,2260.4,4.43878818]
[1750664939316,10.0,2261.0,2260.6,4.42360435]
[1750664939527,0.8133,2260.9,2260.6,4.43840435]
[1750664940243,0.8133,2260.9,2260.5,4.48271777]
[1750664940426,0.8133,2260.9,2260.7,0.0148]